Cogmind - Beta 14 --- EXPLORER MODE // 2024.10.06 @ 19:33:47 Player: viper Result: Self-destructed Performance ------------- Evolutions (2) 1000 Regions Visited (6) 1200 Robots Destroyed (77) 385 Value Destroyed (3263) 3263 Prototype IDs (7) 140 Alien Tech Used (0) 0 Bonus (1086) 1086 TOTAL SCORE: 7074 Bonus ------- High Alert Combat Kills 229 Follower Combat Kills 173 Entered Garrisons 200 Used RIF Installer 500 Friendly Fire -16 Cogmind --------- Core Integrity 153/550 Matter 300/300 Energy 160/160 System Corruption 4% Temperature Cool (9) Movement Walking (270) Ox2 Location -8/Garrison Parts ------- > --- POWER (2) -------- Light Nuclear Core > --- PROPULSION (2) --- VSS Leg > --- UTILITY (6) ------ Large Storage Unit Advanced Targeting Computer > --- WEAPON (2) ------- (None) > --- INVENTORY (15) --- (None) Peak State ------------ > --- POWER ------------ Light Nuclear Core Improved Deuterium Engine > --- PROPULSION ------- Improved Aluminum Leg Titanium Leg > --- UTILITY ---------- Large Storage Unit Structural Scanner Core Shielding Utility Shielding Bomb Drone Bay > --- WEAPON ----------- Improved Light Cannon Improved Light Cannon > --- INVENTORY -------- Ion Engine Ion Engine Aluminum Leg Aluminum Leg Medium Matter Pod Medium Matter Pod Compact Matter Pod Advanced Targeting Computer Light Assault Rifle Light Assault Rifle Improved Light Cannon Improved Light Cannon Grenade Launcher Datajack [Rating: 36] Favorites ----------- Power Ion Engine Engine Ion Engine Power Core Light Nuclear Core Propulsion Aluminum Leg Leg Aluminum Leg Utility Large Storage Unit Device Structural Scanner Storage Large Storage Unit Processor Advanced Targeting Computer Protection Core Shielding Weapon Assault Rifle Ballistic Gun Assault Rifle Ballistic Cannon Improved Light Cannon Launcher Grenade Launcher Slashing Weapon Blade Saw Special Melee Weapon Datajack Build | -11 -10 -10 -9 -9 -8 -8 ------- Run | Yrd Mat Min Mat Min Mat Gar Slots Evolved 5 | . 1 . 2 . 2 . Power 1 | . . . 1 . . . Propulsion . | . . . . . . . Utility 4 | . 1 . 1 . 2 . Weapon . | . . . . . . . Parts Attached 65 | 7 3 2 11 2 7 33 Power 17 | 1 1 . 3 1 1 10 Engine 9 | 1 1 . 3 1 . 3 Core 8 | . . . . . 1 7 Reactor . | . . . . . . . Propulsion 10 | 2 . . 3 . 2 3 Treads . | . . . . . . . Leg 10 | 2 . . 3 . 2 3 Wheel . | . . . . . . . Hover . | . . . . . . . Flight . | . . . . . . . Utility 15 | 2 2 . 3 1 2 5 Device 4 | . 1 . 1 1 . 1 Storage 5 | 1 1 . . . . 3 Processor 1 | . . . . . . 1 Hackware . | . . . . . . . Protection 5 | 1 . . 2 . 2 . Artifact . | . . . . . . . Weapon 23 | 2 . 2 2 . 2 15 Energy Gun . | . . . . . . . Energy Cannon . | . . . . . . . Ballistic Gun 9 | 2 . . 2 . . 5 Ballistic Cannon 8 | . . 2 . . 2 4 Launcher 3 | . . . . . . 3 Special Weapon . | . . . . . . . Impact Weapon . | . . . . . . . Slashing Weapon 2 | . . . . . . 2 Piercing Weapon . | . . . . . . . Special Melee Weapon 1 | . . . . . . 1 Unidentified Prototypes 2 | . . . 1 1 . . Parts Lost 39 | . . 2 6 . 2 29 Power 10 | . . . 1 . 1 8 Propulsion 5 | . . . 2 . . 3 Utility 9 | . . 1 1 . . 7 Weapon 15 | . . 1 2 . 1 11 Highest Loss Streak 7 | . . 2 3 . 1 7 To Critical Strikes . | . . . . . . . Average Slot Usage (%) 96 | . 100 95 98 90 89 95 Engine 11 | . 12 12 18 20 12 6 Core 2 | . . . . . 2 6 Leg 20 | . 25 25 19 20 16 15 Device 10 | . 12 8 10 20 16 6 Storage 14 | . 12 12 10 10 8 20 Processor 2 | . . . . . . 8 Protection 12 | . 12 12 20 . 16 11 Ballistic Gun 11 | . 25 14 5 20 1 5 Ballistic Cannon 7 | . . 10 14 . 13 9 Peak Build Rating 36 | 7 9 17 22 26 36 27 Average Rating 18 | 5 8 12 17 23 33 24 On Entrance 15 | . 7 9 17 12 26 36 Naked Turns . | . . . . . . . Heaviest Build 54 | 20 31 44 51 47 54 48 Greatest Support 30 | 20 20 20 20 20 30 30 Greatest Overweight (x) 2 | . 1 2 2 2 2 2 Average Overweight (x) 1 | . 1 1 1 2 1 . Largest Inventory Capacity 15 | 10 15 15 15 15 15 15 Average Capacity 14 | 8 11 15 15 15 15 15 Most Carried 15 | 3 10 14 13 11 15 15 Average Carried 9 | 1 5 12 11 9 13 10 Final Capacity 15 | 10 15 15 15 15 15 15 Final Carried 15 | 3 10 14 9 10 15 . Class Distribution -------------------- 100% | Hacker-Mutant Dominant Class ---------------- Hacker-Mutant | -10/Materials Hacker-Mutant | -10/Mines Hacker-Mutant | -9/Materials Hacker-Mutant | -9/Mines Hacker-Mutant | -8/Materials Hacker-Mutant | -8/Garrison Resources | -11 -10 -10 -9 -9 -8 -8 ----------- Run | Yrd Mat Min Mat Min Mat Gar Matter Collected 2548 | 217 373 151 680 72 124 931 Remotely . | . . . . . . . Salvage Created 2371 | . 624 163 715 . 118 751 Parts 135 | . 34 19 35 . 8 39 Haulers Intercepted 3 | . 2 . 1 . . . Recyclers Shooed 2 | . . . 2 . . . Parts Field Recycled . | . . . . . . . Retrieved Matter . | . . . . . . . Parts Self-Destructed . | . . . . . . . Prevented . | . . . . . . . Kills | -11 -10 -10 -9 -9 -8 -8 ------- Run | Yrd Mat Min Mat Min Mat Gar Combat Hostiles Destroyed 64 | . 11 10 10 . 3 30 Melee 2 | . . 1 . . . 1 Guns 23 | . 11 2 3 . . 7 Cannons 35 | . . 7 7 . 3 18 AOE 4 | . . . . . . 4 Classes Destroyed 13 | . 5 4 2 . . 2 Worker 4 | . 2 1 1 . . . Builder 2 | . . . 2 . . . Tunneler 1 | . . 1 . . . . Hauler 3 | . 2 . 1 . . . Recycler 5 | . . 1 4 . . . Watcher 4 | . 3 . 1 . . . Swarmer 10 | . 2 2 . . . 6 Cutter 3 | . . . . . . 3 Grunt 33 | . 9 . 7 . 1 16 Sentry 8 | . . . 3 . 2 3 Demolisher 2 | . . 2 . . . . Hunter 2 | . . . . . . 2 Assembled 6 | . . 6 . . . . Best Kill Streak 8 | . 4 4 8 . 1 5 Combat Bots Only 5 | . 3 4 4 . 1 5 Max Kills in Single Turn 2 | . 1 1 2 . 1 2 Gunslinging . | . . . . . . . Exploded 1 | . . . . . . 1 Melee 1 | . . 1 . . . 1 Uniques/NPCs Destroyed . | . . . . . . . Combat | -11 -10 -10 -9 -9 -8 -8 -------- Run | Yrd Mat Min Mat Min Mat Gar Hostile Shots Fired 492 | . 36 52 82 . 9 313 Missed 132 | . 12 13 20 . 5 82 Damage Taken 3754 | . 188 428 538 16 240 2344 Core 568 | . 47 55 69 . 8 389 Absorbed by Shields . | . . . . . . . Redirected to Shielding 138 | . 10 22 23 . 31 52 Ignored by Resistances 2274 | . 119 257 330 10 135 1423 Core Remaining (%) 80 | 100 . 59 . 82 . . Volleys Fired 237 | . 49 31 50 . 6 101 Largest 2 | . 2 2 2 . 2 2 Hottest 114 | . 40 114 114 . 78 78 Shots Fired 450 | . 98 52 98 . 12 190 Gun 218 | . 98 20 38 . . 62 Cannon 222 | . . 32 60 . 12 118 Launcher 10 | . . . . . . 10 Special . | . . . . . . . Kinetic 440 | . 98 52 98 . 12 180 Thermal . | . . . . . . . Explosive 10 | . . . . . . 10 Electromagnetic . | . . . . . . . Robot Hit Streak 32 | . 15 7 29 . 5 32 Robot Miss Streak 5 | . 3 2 5 . 1 2 Penetration Max 1 | . . . 1 . . . Secondary Targets 3 | . 2 . . . . 1 Max Gunslinging Chain 1 | . 1 . . . . 1 Shots Hit Robots 334 | . 72 38 65 . 8 151 Core Hits 157 | . 30 22 29 . 5 71 Critical Kills 14 | . . 6 8 . . . Critical Parts Destroyed 21 | . 1 5 14 . . 1 Critical Strikes 39 | . 1 11 23 . . 4 Destroy 36 | . 1 11 23 . . 1 Blast 2 | . . . . . . 2 Sever 1 | . . . . . . 1 Melee Attacks 8 | . . . . . . 8 Impact . | . . . . . . . Slashing 7 | . . . . . . 7 Piercing . | . . . . . . . Sneak Attacks . | . . . . . . . Combat Hostiles . | . . . . . . . Follow-up Attacks . | . . . . . . . Damage Inflicted 5942 | . 907 626 1225 . 168 3016 Guns 1856 | . 904 191 368 . . 393 Cannons 3309 | . . 413 856 . 168 1872 Explosions 658 | . . . . . . 658 Melee 93 | . . . . . . 93 Ramming 26 | . 3 22 1 . . . Kinetic 5149 | . 904 604 1224 . 168 2249 Thermal . | . . . . . . . Explosive 658 | . . . . . . 658 Electromagnetic . | . . . . . . . Impact 16 | . . . . . . 16 Slashing 93 | . . . . . . 93 Piercing . | . . . . . . . Highest Corruption 4 | . . . . . . 4 Average Corruption 3 | . . . . . . 3 Corruption Purged . | . . . . . . . Corruption Blocked . | . . . . . . . Overload Shots . | . . . . . . . Overflow Damage 81 | . . 11 1 . . 69 Projectiles 32 | . . 11 1 . . 20 Explosions 49 | . . . . . . 49 Melee . | . . . . . . . Knockbacks 22 | . . 5 5 . 2 10 Impact . | . . . . . . . Kinetic 22 | . . 5 5 . 2 10 Secondary . | . . . . . . . Self-Inflicted Damage 171 | . . . . . . 171 Shots 6 | . . . . . . 6 Rammed . | . . . . . . . Targets Rammed 14 | . 1 12 1 . . . Kicked 14 | . 1 12 1 . . . Crushed . | . . . . . . . Highest Temperature 480 | . 2 270 480 . 54 455 Average Temperature 136 | . 1 111 158 . 22 142 Received Heat Transfer 2100 | . 147 . 378 . 18 1557 Effects 14 | . . 1 5 . . 8 Shutdowns 6 | . . . 2 . . 4 Energy Bleed 4 | . . 1 2 . . 1 Interference 3 | . . . 1 . . 2 Damage (minor) 1 | . . . . . . 1 Siege Activations . | . . . . . . . Robots Corrupted . | . . . . . . . Combat Hostiles . | . . . . . . . Parts Fried . | . . . . . . . Impact Corruptions . | . . . . . . . Robots Melted . | . . . . . . . Combat Hostiles . | . . . . . . . Parts Melted . | . . . . . . . Heat Transferred . | . . . . . . . Parts Sabotaged . | . . . . . . . Parts Stolen . | . . . . . . . Parts Stripped . | . . . . . . . Power Chain Reactions . | . . . . . . . Alert | -11 -10 -10 -9 -9 -8 -8 ------- Run | Yrd Mat Min Mat Min Mat Gar Peak Influence 1218 | . 229 90 180 45 125 1218 Initial 61 | . . 15 1 45 6 61 Average 242 | . 88 19 64 31 38 592 Maximum Alert Level 4 | . 1 . . . . 4 Low Security (%) 67 | 100 86 100 100 100 100 15 Level 1 8 | . 13 . . . . 17 Level 2 10 | . . . . . . 29 Level 3 11 | . . . . . . 34 Level 4 1 | . . . . . . 4 Level 5 . | . . . . . . . High Security . | . . . . . . . Max Security . | . . . . . . . Squads Dispatched 4 | . 3 . . . 1 . Investigation 4 | . 3 . . . 1 . Extermination . | . . . . . . . Reinforcement . | . . . . . . . Assault . | . . . . . . . Garrison . | . . . . . . . Intercept . | . . . . . . . Searches Triggered . | . . . . . . . Construction Impeded . | . . . . . . . Haulers Reinforced . | . . . . . . . Active Scanning Responses . | . . . . . . . Cargo Convoy Interrupts . | . . . . . . . Stealth | -11 -10 -10 -9 -9 -8 -8 --------- Run | Yrd Mat Min Mat Min Mat Gar Distress Signals 2 | . 2 . . . . . Communications Jammed . | . . . . . . . Distress Signals . | . . . . . . . Times Spotted 97 | . 17 22 12 . 5 41 Peak Tracking Total 14 | . 4 14 3 . 2 7 Tactical Retreats 5 | . 1 1 1 . . 2 Traps | -11 -10 -10 -9 -9 -8 -8 ------- Run | Yrd Mat Min Mat Min Mat Gar Traps Triggered 4 | . . . . . . 4 Indirectly . | . . . . . . . Trap Hack Attempts . | . . . . . . . Triggered . | . . . . . . . Disarmed . | . . . . . . . Reprogrammed 4 | . 4 . . . . . Reused . | . . . . . . . Traps Extracted . | . . . . . . . Installed . | . . . . . . . Triggered . | . . . . . . . Machines | -11 -10 -10 -9 -9 -8 -8 ---------- Run | Yrd Mat Min Mat Min Mat Gar Machines Disabled 8 | . . . 2 . . 6 Max in Single Turn 1 | . . . 1 . . 1 Garrison Relay 4 | . . . . . . 4 Phase Generator 1 | . . . . . . 1 Machines Repaired . | . . . . . . . Machines Dismantled . | . . . . . . . Machines Sabotaged . | . . . . . . . Overloaded Fab Kills . | . . . . . . . Hacking | -11 -10 -10 -9 -9 -8 -8 --------- Run | Yrd Mat Min Mat Min Mat Gar Machines Accessed 13 | . 7 1 . 1 2 2 Terminals 10 | . 7 . . . 1 2 Fabricators . | . . . . . . . Repair Stations . | . . . . . . . Recycling Units . | . . . . . . . Scanalyzers . | . . . . . . . Garrison Access 1 | . . . . . 1 . Total Hacks 42 | . 34 1 . 1 4 2 Successful 36 | . 28 1 . 1 4 2 Failed 6 | . 6 . . . . . Catastrophic . | . . . . . . . Database Lockouts . | . . . . . . . Manual . | . . . . . . . Terminals 39 | . 34 . . . 3 2 Fabricators . | . . . . . . . Repair Stations . | . . . . . . . Recycling Units . | . . . . . . . Scanalyzers . | . . . . . . . Garrison Access 1 | . . . . . 1 . Terminal Hacks 35 | . 28 1 . 1 3 2 Record 10 | . 10 . . . . . Prototype ID Bank 3 | . 2 . . . 1 . Open Door 3 | . . 1 . 1 . 1 Alert Level 1 | . 1 . . . . . Locate Traps 3 | . 3 . . . . . Reprogram Traps 1 | . 1 . . . . . Dispatch Records 2 | . 1 . . . 1 . Maintenance Status 1 | . 1 . . . . . Assault Status 1 | . 1 . . . . . Hauler Manifests 2 | . 1 . . . 1 . Registered Components 1 | . 1 . . . . . Zone Layout 6 | . 6 . . . . . Garrison Registry 1 | . . . . . . 1 Fabricator Hacks . | . . . . . . . Repair Station Hacks . | . . . . . . . Recycling Unit Hacks . | . . . . . . . Scanalyzer . | . . . . . . . Garrison Access Hacks 1 | . . . . . 1 . Unlock Access 1 | . . . . . 1 . Unauthorized Hacks . | . . . . . . . Terminals . | . . . . . . . Fabricators . | . . . . . . . Repair Stations . | . . . . . . . Recycling Units . | . . . . . . . Scanalyzers . | . . . . . . . Garrison Access . | . . . . . . . Data Cores Recovered . | . . . . . . . Used . | . . . . . . . Hacking Detections 10 | . 7 . . . 2 1 Full Trace Events 5 | . 4 . . . 1 . Feedback Events . | . . . . . . . Feedback Blocked . | . . . . . . . Robot Schematics Acquired . | . . . . . . . Robots Built . | . . . . . . . Authchips . | . . . . . . . Time . | . . . . . . . Total Robot Build Rating . | . . . . . . . Part Schematics Acquired . | . . . . . . . Parts Built . | . . . . . . . Authchips . | . . . . . . . Time . | . . . . . . . Total Part Build Rating . | . . . . . . . Parts Repaired . | . . . . . . . Time . | . . . . . . . Parts Recycled . | . . . . . . . Recycled Matter . | . . . . . . . Retrieved Matter . | . . . . . . . Retrieved Components . | . . . . . . . Parts Scanalyzed . | . . . . . . . Part Schematics Acquired . | . . . . . . . Parts Damaged . | . . . . . . . Bothacking | -11 -10 -10 -9 -9 -8 -8 ------------ Run | Yrd Mat Min Mat Min Mat Gar Used RIF Installer 1 | . . . . . . 1 Robots Hacked 1 | . . . . . . 1 Non-combat . | . . . . . . . Combat 1 | . . . . . . 1 Robot Hacks Applied 1 | . . . . . . 1 parse_system 1 | . . . . . . 1 Relay Couplers Released 14 | . . . . . . 14 Machine Destruction 14 | . . . . . . 14 Fabnet Peak Effective % . | . . . . . . . Robots Rewired 2 | . . . . . . 2 Allies Hacked . | . . . . . . . Hacks Repelled . | . . . . . . . Allies | -11 -10 -10 -9 -9 -8 -8 -------- Run | Yrd Mat Min Mat Min Mat Gar Total Allies 5 | . . . . 3 . 2 Largest Group 3 | . . . . 3 1 2 Highest-Rated Group 62 | . . . . 40 8 62 Highest-Rated Ally 31 | . . . . 16 8 31 Total Orders . | . . . . . . . Ally Attacks 31 | . . . . 4 7 20 Total Damage 425 | . . . . . . 425 Kills 5 | . . . . . . 5 Allies Corrupted . | . . . . . . . Allies Melted . | . . . . . . . Intel | -11 -10 -10 -9 -9 -8 -8 ------- Run | Yrd Mat Min Mat Min Mat Gar Robot Analysis Total . | . . . . . . . Derelict Logs Recovered 1 | . . 1 . . . . Drone Launches 17 | . . . . 16 1 . Drone Recoveries 1 | . . . . . 1 . Exploration | -11 -10 -10 -9 -9 -8 -8 ------------- Run | Yrd Mat Min Mat Min Mat Gar Turns Passed 5305 | 76 1114 861 705 377 313 1859 Spaces Moved 2168 | 60 495 360 220 140 131 762 Core 13 | 13 . . . . . . Treads . | . . . . . . . Legs 2155 | 47 495 360 220 140 131 762 Wheels . | . . . . . . . Hover . | . . . . . . . Flight . | . . . . . . . Fastest Speed 50 | 50 190 190 190 260 195 110 Average Speed 200 | 104 190 201 246 260 212 189 Slowest Speed 270 | 120 190 260 260 260 260 270 Overloaded Moves . | . . . . . . . Propulsion Burnouts . | . . . . . . . Robots Hopped . | . . . . . . . Cave-ins Triggered . | . . . . . . . Exploration Rate (%) 47 | 4 88 71 26 48 21 77 Regions Visited 6 Branch Regions 2 Pre-discovered Areas . | . . . . . . . Known Exits Taken 6 | 1 1 1 1 1 1 . Unknown Exits Taken . | . . . . . . . Scrap Searched 1 | . . 1 . . . . Spaces Dug 4 | . . . . . . 4 Terrain Destroyed 137 | . . 9 32 . 1 95 Melee . | . . . . . . . Projectile 43 | . . 9 32 . 1 1 AOE 94 | . . . . . . 94 Terrain Rammed . | . . . . . . . Walls Destroyed . | . . . . . . . Machines Disabled . | . . . . . . . Actions | -11 -10 -10 -9 -9 -8 -8 --------- Run | Yrd Mat Min Mat Min Mat Gar Total 2647 | 69 570 424 285 155 156 988 Wait 51 | . 15 17 . 4 3 12 Move 2158 | 59 494 359 219 139 130 758 Hop . | . . . . . . . Pick Up 27 | 3 7 2 3 . 7 5 Fast Attach 15 | 7 . 2 1 . 2 3 Attach 39 | . 1 . 9 1 3 25 Detach 6 | . . 1 . 2 1 2 Swap 11 | . 2 . 1 1 2 5 Drop 5 | . 1 . 1 . 2 1 Fire 237 | . 49 31 50 . 6 101 Melee 8 | . . . . . . 8 Ram . | . . . . . . . Kick 14 | . 1 12 1 . . . Crush . | . . . . . . . Escape Stasis 15 | . . . . . . 15 Rewire 61 | . . . . 8 . 53 Trap . | . . . . . . . Miscellaneous . | . . . . . . . Route ------- -11/Scrapyard -10/Materials (discovered 5 exits: *Mat x3 / *Min x2) -10/Mines -9/Materials (discovered 2 exits: *Min / Sto) -9/Mines -8/Materials -8/Garrison (discovered 3 exits: *Mat x3) History --------- Turn | Location | Event 2 | -11/Scrapyard | Met Revision 17 4 | -11/Scrapyard | Identified exit to Materials 4 | -11/Scrapyard | Discovered exit to Materials (range 15) 77 | -11/Scrapyard | Entered Materials 77 | -10/Materials | Evolved 1 slot: Utility x1 176 | -10/Materials | Identified exit to Mines 176 | -10/Materials | Discovered exit to Mines (range 18) 241 | -10/Materials | Identified exit to Materials 241 | -10/Materials | Discovered exit to Materials (range 14) 307 | -10/Materials | Build established: Hacker-Mutant 358 | -10/Materials | Discovered exit to Materials (range 20) 718 | -10/Materials | Discovered exit to Materials (range 12) 1155 | -10/Materials | Discovered exit to Mines (range 6) 1191 | -10/Materials | Entered Mines 1325 | -10/Mines | Found the Drone Emporium 1334 | -10/Mines | Found Prototype Device 1560 | -10/Mines | A weapon hastily lodged in a ceiling crevice suddenly fell to the ground 1618 | -10/Mines | Found DCF Scrap (14 items) 1627 | -10/Mines | YI-UF0 nonchalantly dropped a Grenade Launcher on the ground 1769 | -10/Mines | Assembled infested the area 1774 | -10/Mines | Assisted by a Guerilla fighting off Assembled 2026 | -10/Mines | Discovered exit to Materials (range 11) 2052 | -10/Mines | Entered Materials 2052 | -9/Materials | Evolved 2 slots: Power x1, Utility x1 2053 | -9/Materials | Identified exit to Storage 2685 | -9/Materials | Lost 3 parts (2n1w) 2734 | -9/Materials | Identified exit to Mines 2734 | -9/Materials | Discovered exit to Mines (range 9) 2757 | -9/Materials | Entered Mines 2759 | -9/Mines | Identified Bomb Drone Bay 2801 | -9/Mines | Met a Derelict bent on vengeance 3002 | -9/Mines | Met a Derelict who couldn't figure out how to use a Trap Extractor 3046 | -9/Mines | Identified exit to Materials 3046 | -9/Mines | Discovered exit to Materials (range 10) 3099 | -9/Mines | Assisted by bots powering up and referring to "LRC-V3" 3134 | -9/Mines | Entered Materials 3134 | -8/Materials | Accompanied by 13 allies 3134 | -8/Materials | Evolved 2 slots: Utility x2 3187 | -8/Materials | Lost 7 allies 3274 | -8/Materials | Lost 6 allies 3441 | -8/Materials | Identified exit to Garrison 3447 | -8/Materials | Entered Garrison 3495 | -8/Garrison | Triggered checkpoint 3582 | -8/Garrison | Garrison Relay disabled 3693 | -8/Garrison | Triggered checkpoint 4007 | -8/Garrison | Identified exit to Materials 4007 | -8/Garrison | Discovered exit to Materials (range 10) 4024 | -8/Garrison | Attempted to access garrison exit controls, blocked by remote lockdown 4091 | -8/Garrison | Triggered checkpoint 4131 | -8/Garrison | Garrison Relay disabled 4169 | -8/Garrison | Installed Relay Interface Framework 4283 | -8/Garrison | Triggered checkpoint 4334 | -8/Garrison | Lost 5 parts (1p1n2u1w) 4372 | -8/Garrison | Triggered checkpoint 4567 | -8/Garrison | Triggered checkpoint 4594 | -8/Garrison | Garrison Relay disabled 4696 | -8/Garrison | Discovered exit to Materials (range 10) 4769 | -8/Garrison | Triggered checkpoint 4830 | -8/Garrison | Lost 3 parts (2p1w) 4861 | -8/Garrison | Phase Generator disabled 4870 | -8/Garrison | Discovered exit to Materials (range 61) 4870 | -8/Garrison | Discovered exit to Materials (range 72) 4870 | -8/Garrison | Discovered exit to Materials (range 29) 5167 | -8/Garrison | Triggered checkpoint 5185 | -8/Garrison | Core integrity fell below 50% 5217 | -8/Garrison | Lost 7 parts (2p2n2u1w) 5227 | -8/Garrison | Garrison Relay disabled 5272 | -8/Garrison | P-60 Hacker assimilated allied XO-J8K(g) 5306 | -8/Garrison | Self-destructed Last Messages --------------- 05278_ XO-J8K(g) reactivates. 05279_ Acquired 2 matter. 05279_ Lgt. Assault Rifle destroyed. 05282_ Acquired 10 matter. 05282_ Jacked C-17 Slicer... >>parse_system Reading system data... 05283_ Lgt. Assault Rifle destroyed. 05284_ Acquired 8 matter. 05284_ C-17 Slicer Surge Thruster severed. 05288_ VSS Leg severed. 05290_ C-17 Slicer destroyed. 05292_ Critical hit (Burn: +37). 05293_ P-60 Hacker resets C-17 Slicer, system corruption cleaned. 05295_ C-17 Slicer destroyed. 05295_ Med. Matter Pod destroyed. 05296_ Acquired Lgt. Nuclear Core. 05300_ Datajack destroyed. 05304_ Blade Saw destroyed. Map ----- +----------------------------------------------------+ | ?????????????????????????????????????????????? | | ?????????????????????????????????????????????? | | ??????????????????????????##############?????? | | ??????????????????????????#""" " " """#?????? | | ??????????????????????????#&&" " " "&&#?????? | | ??????????????????????????#&&" """" "&&#?????? | | ??????????????????????????#""" ^ """#?????? | | ??????????????????????????# ^ #?????? | | ??????????????????????????#""" """#?????? | | ??????????????????????????#&&" #### "&&#?????? | | ??????????????????????????#&&" "&&#?????? | | ??????????????????????????#""" ^^ """#?####? | | ??????????????????????????# #?#//#? | | ??????????????????????????#### ####?#//#? | | ?????????????????????????????##### #????#//#? | | ?????????????????????????????????# ######//## | | ?????????????????????????????????# + | | ??##############?????????????????# # ####!!# | | ??#######"""""###?######?????????# # #??#### | | ??## "###?# #?????????# # #?????# | | ??### #" ##?# < #??????#### # #?????## | | ??#"" """""# ##### #??????#"## # #??????? | | ??#"" #### #??????#"![ [[ #??????? | | ??#"" ^ ^ =%= #### #??????#!!%=%%=#??????? | | ??#"" %=pY g#??????#"! =%==#??????? | | ??#"" """""# #######@ #??????#"## ###??????? | | ??### #" ##???# #??????#### #????????? | | ??## "###???# ########### ########## | | ??#######"""""###???# | | ??##############????# | | ????????????????????############## #### ### | | ?????????????????????????????????# #??# #?#^^ | | ?????????????????????????????????# #??# #?#^^ | | ?????????????????????????????????# #??# #?# | | ?????????????????????????????????# #### ### | | ?????????????????????????????????# ! ! | | ?????????????????????????????????# ### ## # | | ?????????????????????????????????# #?# #### | | ?????????????????????????????????# ### ### | | ?????????????????????????????????# | | ?????????????????????????????????# | | ?????????????????????????????????## ####### | | ??????????????????????????????????# #???### | | ??????????????????????????????????# ##### | | ??????????????????????????????????# | | ??????????????????????????????????####### | | ????????????????????????????????????????# ! | | ????????????????????????????????????????### | | ??????????????????????????????????????????# | | ??????????????????????????????????????????# [ | +----------------------------------------------------+ Best States ------------- Heat Dissipation 45 Energy Generation 25 Energy Capacity 440 Matter Stores 550 Matter Capacity 550 Sight Range 16 Terrain Scan Range 14 Terrain Scan Density 10 Resistance: KI 35 Resistance: TH 35 Resistance: EX 35 Resistance: EM 35 Resistance: I 35 Resistance: S 35 Resistance: P 35 Core Shielding 20 Propulsion Shielding 33 Utility Shielding 33 Evasion (%) 55 Targeting Accuracy 8 Offensive Hacking 20 Item Schematics ----------------- None Robot Schematics ------------------ None Fabricated ------------ Nothing Alien Tech Used ----------------- None Achievements -------------- None Challenges ------------ None Game ------ Seed TachyonWarpPlatform Manual? 0 Play Time 00:35:17 Cumulative 1734.6 hours Start 2024.10.05 @ 10:05:26 End 2024.10.06 @ 19:33:47 Sessions 3 Manual Loads 0 Difficulty Explorer Special Mode None Game No. 974 Rogue 62 Adventurer 0 Explorer 912 Win Type - Total 11 Types 11/0/0/0/0/0/0/0/0 Lore% 44 Gallery% 76 Achievement% 63 Wizard Run 0 Options --------- Layout 1 ASCII 0 Keyboard 0 Movement Mouse Keybinds 0 Fullscreen 1 Font 48/Smallcaps Map View 55x35 Zoom Use 0% Tactical HUD 1 Map Filters NONE Filters NONE Steam 1 RUN: 84b64208-4ac4-4366-9651-a7afc2fcb336